bitfinex-derivatives/quotes_SOLF0:USTF0_20250831
["timestamp","ask_amount","ask_price","bid_price","bid_amount"]
[1756642569777,0.85729067,203.12,202.93,7.22]
[1756642569778,5.49002996,203.09,202.93,7.22]
[1756642569984,44.26,203.05,202.93,7.22]
[1756642570178,56.8,203.04,202.93,7.22]
[1756642572971,56.8,203.04,202.94,4.55885243]
[1756642573177,56.8,203.04,202.95,4.55885243]
[1756642573376,56.8,203.04,202.96,4.55885243]
[1756642573572,56.8,203.04,202.93,7.22]
[1756642573778,56.8,203.04,202.94,4.55921097]
[1756642574077,56.8,203.04,202.95,4.55921097]
[1756642574373,56.8,203.04,202.96,4.55921097]
[1756642574579,56.8,203.04,202.97,4.55921097]
[1756642574777,56.8,203.04,202.98,4.55921097]
[1756642574972,56.8,203.04,202.99,4.55921097]
[1756642575174,56.8,203.04,203.0,4.55921097]
[1756642575379,56.8,203.04,202.93,7.22]
[1756642575579,56.8,203.04,202.94,4.5596068]
[1756642575776,56.8,203.04,202.95,4.5596068]
[1756642575976,56.8,203.04,202.96,4.5596068]
[1756642576277,56.8,203.04,202.97,4.5596068]
[1756642576479,56.8,203.04,202.98,4.5596068]
[1756642576676,56.8,203.04,202.99,4.5596068]
[1756642576876,56.8,203.04,203.0,4.5596068]
[1756642577078,56.8,203.04,202.93,7.22]
[1756642577371,56.8,203.04,202.94,4.55896013]
[1756642577576,56.8,203.04,202.95,4.55896013]
[1756642577776,56.8,203.04,202.96,4.55896013]
[1756642577981,56.8,203.04,202.97,4.55896013]
[1756642578279,56.8,203.04,202.98,4.55896013]
[1756642578480,56.8,203.04,202.99,4.55896013]
[1756642578680,56.8,203.04,202.88,7.22]
[1756642578875,56.8,203.04,202.89,4.55680715]
[1756642579078,56.8,203.04,202.9,4.55680715]
[1756642579277,56.8,203.04,202.91,4.55680715]
[1756642579479,0.85729067,203.12,202.92,4.55680715]
[1756642579480,5.49002996,203.05,202.92,4.55680715]
[1756642579772,68.78,203.04,202.93,4.55680715]
[1756642579976,68.78,203.04,202.94,4.55680715]
[1756642580177,68.78,203.04,202.95,4.55680715]
[1756642580381,68.78,203.04,202.96,4.55680715]
[1756642580683,68.78,203.04,202.97,4.55680715]
[1756642580879,68.78,203.04,202.98,4.55680715]
[1756642581085,68.78,203.04,202.99,4.55680715]
[1756642581385,68.78,203.04,202.91,7.22]
[1756642581687,68.78,203.04,202.92,4.60035009]
[1756642581886,91.22,203.03,202.93,4.60035009]
[1756642582076,5.49002996,203.07,202.94,11.82035009]
[1756642582282,107.76,203.02,202.95,4.60035009]
[1756642582483,107.76,203.02,202.96,4.60035009]
[1756642582685,107.76,203.02,202.97,4.60035009]
[1756642582885,107.76,203.02,202.94,7.22]
[1756642582886,107.76,203.02,202.98,4.60035009]
[1756642583182,107.76,203.02,202.99,4.60035009]
[1756642583386,107.76,203.02,203.0,4.60035009]
[1756642583587,107.76,203.02,202.94,7.22]
[1756642583888,107.76,203.02,202.95,4.5989922]
[1756642584186,107.76,203.02,202.94,7.22]
[1756642584387,107.76,203.02,202.95,4.59899238]
[1756642584586,107.76,203.02,202.96,4.59899238]
[1756642584783,107.76,203.02,202.97,4.59899238]
[1756642584982,107.76,203.02,202.94,7.22]
[1756642585182,107.76,203.02,202.95,4.59849838]
[1756642585382,107.76,203.02,202.96,4.59849838]
[1756642585583,107.76,203.02,202.97,4.59849838]
[1756642585782,107.76,203.02,202.98,4.59849838]
[1756642585982,107.76,203.02,202.99,4.59849838]
[1756642586183,107.76,203.02,202.94,7.22]
[1756642586387,107.76,203.02,202.95,4.59764948]
[1756642586687,107.76,203.02,202.96,4.59764948]
[1756642586986,107.76,203.02,202.97,4.59764948]
[1756642587185,107.76,203.02,202.98,4.59764948]
[1756642587387,107.76,203.02,202.99,4.59764948]
[1756642587687,107.76,203.02,202.94,7.22]
[1756642587988,107.76,203.02,202.95,4.59729131]
[1756642588288,107.76,203.02,202.96,4.59729131]
[1756642588487,107.76,203.02,202.97,4.59729131]
[1756642588687,107.76,203.02,202.98,4.59729131]
[1756642588986,107.76,203.02,202.94,7.22]
[1756642588987,107.76,203.02,202.99,4.59729131]
[1756642589186,107.76,203.02,202.94,7.22]
[1756642589388,107.76,203.02,202.95,4.59669859]
[1756642589587,107.76,203.02,202.96,4.59669859]
[1756642589783,107.76,203.02,202.97,4.59669859]
[1756642590087,107.76,203.02,202.98,4.59669859]
[1756642590290,107.76,203.02,202.99,4.59669859]
[1756642590490,107.76,203.02,202.88,7.22]
[1756642590785,107.76,203.02,202.89,4.59658082]
[1756642591089,107.76,203.02,202.9,4.59658082]
[1756642591285,107.76,203.02,202.91,4.59658082]
[1756642591589,107.76,203.02,202.92,4.59658082]
[1756642591783,113.25002996,203.02,202.85,7.22]
[1756642591990,113.25002996,203.02,202.86,4.5961679]
[1756642592190,113.25002996,203.02,202.87,4.5961679]
[1756642592389,113.25002996,203.02,202.88,4.5961679]
[1756642592689,113.25002996,203.02,202.89,4.5961679]
[1756642592891,113.25002996,203.02,202.9,4.5961679]
[1756642593191,107.76,203.02,202.91,4.5961679]
[1756642593392,107.76,203.02,202.92,4.5961679]
[1756642593583,107.76,203.02,202.87,7.22]
[1756642593893,5.49002996,203.01,202.88,4.59319164]
[1756642594088,331.18,203.0,202.89,4.59319164]
[1756642594394,331.18,203.0,202.9,4.59319164]
[1756642594588,331.18,203.0,202.87,7.22]
[1756642594789,331.18,203.0,202.88,4.59182187]
[1756642595192,331.18,203.0,202.89,4.59182169]
[1756642595394,331.18,203.0,202.9,4.59182169]
[1756642595595,331.18,203.0,202.87,7.22]
[1756642595795,331.18,203.0,202.88,4.59040241]
[1756642596004,331.18,203.0,202.89,4.59040241]
[1756642596193,331.18,203.0,202.9,4.59040241]
[1756642596393,331.18,203.0,202.87,7.22]
[1756642596594,331.18,203.0,202.88,4.5891911]
[1756642596897,331.18,203.0,202.87,7.22]
[1756642596898,331.18,203.0,202.89,4.5891911]
[1756642597098,331.18,203.0,202.87,7.22]
[1756642597398,331.18,203.0,202.88,4.58819156]
[1756642597599,331.18,203.0,202.89,4.58819156]
[1756642597798,331.18,203.0,202.87,7.22]
[1756642598001,331.18,203.0,202.88,4.58816856]
[1756642598201,331.18,203.0,202.89,4.58816856]
[1756642598401,331.18,203.0,202.87,7.22]
[1756642598603,331.18,203.0,202.88,4.58732211]
[1756642598900,331.18,203.0,202.89,4.58732211]
[1756642599100,331.18,203.0,202.87,7.22]
[1756642599301,331.18,203.0,202.88,4.58658836]
[1756642599501,331.18,203.0,202.89,4.58658836]
[1756642599701,331.18,203.0,202.87,7.22]
[1756642600000,331.18,203.0,202.88,4.58663971]
[1756642600303,331.18,203.0,202.89,4.58663971]
[1756642600602,331.18,203.0,202.87,7.22]
[1756642600806,331.18,203.0,202.88,4.58634881]
[1756642600997,331.18,203.0,202.89,4.58634881]
[1756642601199,331.18,203.0,202.87,7.22]
[1756642601397,331.18,203.0,202.88,4.58622852]
[1756642601603,120.86,202.99,202.89,12.35622852]
[1756642601805,120.86,202.99,202.9,7.77]
[1756642604600,331.18,203.0,202.9,7.77]
[1756642604801,120.86,202.99,202.9,7.77]
[1756642605304,120.86,202.98,202.91,4.59000579]
[1756642605502,120.86,202.97,202.9,7.77]
[1756642605705,120.86,202.97,202.91,4.59004858]
[1756642605899,120.86,202.97,202.9,7.77]
[1756642606099,120.86,202.97,202.91,4.5900484]
[1756642606404,120.86,202.97,202.9,7.77]
[1756642606604,120.86,202.97,202.91,4.5899202]
[1756642606802,120.86,202.97,202.9,7.77]
[1756642607003,120.86,202.97,202.91,4.59096448]
[1756642607302,120.86,202.97,202.9,7.77]
[1756642607504,120.86,202.97,202.91,4.59176038]
[1756642607804,120.86,202.97,202.9,7.77]
[1756642608003,120.86,202.97,202.91,4.59176038]
[1756642608206,120.86,202.97,202.9,7.77]
[1756642608501,120.86,202.97,202.91,4.592732]
[1756642608704,120.86,202.97,202.9,7.77]
[1756642608905,120.86,202.97,202.91,4.59268936]
[1756642609206,331.18,203.0,202.9,7.77]
[1756642609408,120.86,202.99,202.91,4.58357187]
[1756642609606,120.86,202.99,202.92,4.58357187]
[1756642609802,120.86,202.98,202.9,7.77]
[1756642610002,120.86,202.98,202.91,4.58354111]
[1756642610205,120.86,202.98,202.92,4.58354111]
[1756642610407,120.86,202.98,202.9,7.77]
[1756642610607,120.86,202.98,202.91,4.58498199]
[1756642610807,120.86,202.98,202.92,4.58498199]
[1756642611011,120.86,202.98,202.9,7.77]
[1756642611210,120.86,202.98,202.91,4.58498181]
[1756642611404,120.86,202.98,202.92,4.58498181]
[1756642611606,120.86,202.98,202.9,7.77]
[1756642611907,120.86,202.98,202.91,4.58668538]
[1756642612208,120.86,202.98,202.92,4.58668538]
[1756642612402,120.86,202.98,202.93,4.58668538]
[1756642612598,120.86,202.98,202.9,7.77]
[1756642612803,120.86,202.98,202.91,4.58813941]
[1756642613006,120.86,202.98,202.92,4.58813941]
[1756642613206,120.86,202.98,202.93,4.58813941]
[1756642613407,120.86,202.98,202.9,7.77]
[1756642613598,120.86,202.98,202.91,4.5897988]
[1756642613804,120.86,202.98,202.92,4.5897988]
[1756642614002,120.86,202.98,202.93,4.5897988]
[1756642614307,120.86,202.98,202.9,7.77]
[1756642614507,120.86,202.98,202.91,4.58996198]
[1756642614803,120.86,202.98,202.92,4.58996198]
[1756642615009,120.86,202.98,202.87,7.77]
[1756642615210,120.86,202.98,202.88,4.59001537]
[1756642615409,120.86,202.98,202.89,4.59001537]
[1756642615609,120.86,202.98,202.9,4.59001537]
[1756642615903,120.86,202.98,202.91,4.59001537]
[1756642616106,120.86,202.98,202.92,4.59001537]
[1756642616307,120.86,202.98,202.87,7.77]
[1756642616605,120.86,202.98,202.88,4.59100579]
[1756642616808,120.86,202.98,202.89,4.59100579]
[1756642617008,120.86,202.98,202.9,4.59100579]
[1756642617210,120.86,202.98,202.91,4.59100579]
[1756642617509,120.86,202.98,202.92,4.59100579]
[1756642617812,120.86,202.98,202.87,7.77]
[1756642618109,120.86,202.98,202.88,4.59155871]
[1756642618308,120.86,202.98,202.89,4.59155871]
[1756642618509,120.86,202.98,202.9,4.59155871]
[1756642618709,120.86,202.98,202.91,4.59155871]
[1756642618911,120.86,202.98,202.92,4.59155871]
[1756642619111,120.86,202.98,202.87,7.77]
[1756642619413,5.49002996,202.97,202.88,4.59298356]
[1756642619606,5.49002996,202.97,202.89,4.59298356]
[1756642619904,5.49002996,202.97,202.9,4.59298356]
[1756642620104,5.49002996,202.97,202.84,7.77]
[1756642620310,5.49002996,202.97,202.85,4.59374933]
[1756642620511,5.49002996,202.97,202.86,4.59374933]
[1756642620712,5.49002996,202.96,202.87,4.59374933]
[1756642620908,5.49002996,202.95,202.88,4.59374933]
[1756642621211,120.86,202.94,202.84,7.77]
[1756642621409,120.86,202.94,202.85,4.59425115]
[1756642621609,120.86,202.94,202.86,4.59425115]
[1756642621811,120.86,202.94,202.87,4.59425115]
[1756642622010,120.86,202.94,202.88,4.59425115]
[1756642622207,126.35002996,202.94,202.84,7.77]
[1756642622408,126.35002996,202.94,202.85,4.59376013]
[1756642622602,120.86,202.93,202.86,12.36376013]
[1756642622803,120.86,202.92,202.87,4.59376013]
[1756642623005,120.86,202.91,202.88,12.36376013]
[1756642623208,120.86,202.91,202.89,4.59376013]
[1756642623408,120.86,202.91,202.88,7.77]
[1756642623605,120.86,202.91,202.76,4.12837702]
[1756642623912,120.86,202.91,202.78,7.77]
[1756642624113,120.86,202.91,202.8,7.77]
[1756642624313,120.86,202.91,202.82,7.77]
[1756642624512,120.86,202.91,202.84,7.77]
[1756642624713,120.86,202.91,202.85,4.59222335]
[1756642625017,120.86,202.91,202.87,7.77]
[1756642625207,120.86,202.91,202.88,4.59222335]
[1756642625412,120.86,202.91,202.87,7.77]
[1756642625608,120.86,202.91,202.88,4.59196735]
[1756642626120,120.86,202.91,202.84,7.77]
[1756642626419,5.49002996,202.95,202.86,7.77]
[1756642626620,120.86,202.9,202.88,7.77]
[1756642626918,27.5,202.89,202.77,7.77]
[1756642627111,120.86,202.88,202.79,7.77]
[1756642627317,5.49002996,202.96,202.81,7.77]
[1756642627529,120.86,202.95,202.83,7.77]
[1756642627716,120.86,202.95,202.84,4.59184042]
[1756642627917,120.86,202.95,202.85,4.59184042]
[1756642628120,120.86,202.95,202.86,4.59184042]
[1756642628310,120.86,202.95,202.87,4.59184042]
[1756642628615,120.86,202.95,202.88,4.59184042]
[1756642628814,120.86,202.95,202.89,4.59184042]
[1756642629014,120.86,202.95,202.85,7.23]
[1756642629318,120.86,202.95,202.86,4.59264773]
[1756642629519,5.49002996,202.95,202.87,4.59264773]
[1756642629817,120.86,202.94,202.88,4.59264773]
[1756642630017,5.49002996,202.95,202.87,7.23]
[1756642630215,5.49002996,203.03,202.89,7.23]
[1756642630413,1419.5,203.14,202.91,7.23]
[1756642630414,6.92,203.02,202.91,7.23]
[1756642630609,6.92,203.02,202.88,4.12837702]
[1756642630610,6.92,203.01,202.93,7.23]
[1756642630817,6.92,203.01,202.94,4.5931837]
[1756642631019,6.92,203.01,202.95,4.5931837]
[1756642631219,6.92,203.01,202.96,4.5931837]
[1756642631423,6.92,203.01,202.97,4.5931837]
[1756642631715,6.92,203.01,202.98,4.5931837]
[1756642631920,6.92,203.01,202.99,4.5931837]
[1756642632117,6.92,203.01,203.0,4.5931837]
[1756642635423,5.49002996,203.06,203.0,11.8231837]
[1756642635630,331.32,203.07,203.01,11.8231837]
[1756642635927,120.84,203.06,203.02,4.5931837]
[1756642636128,120.84,203.06,203.03,4.5931837]
[1756642636332,120.84,203.06,203.04,4.5931837]
[1756642636520,120.84,203.06,203.01,7.23]
[1756642636725,120.84,203.06,203.02,4.76940747]
[1756642636927,120.84,203.06,203.03,11.99940747]
[1756642637122,120.84,203.06,203.04,4.76940747]
[1756642637328,120.84,203.06,203.03,7.23]
[1756642637728,120.84,203.05,203.03,7.23]
[1756642638129,120.84,203.04,203.03,7.23]
[1756642638934,120.84,203.04,203.03,11.84941525]
[1756642640735,120.82,203.04,203.03,11.84941525]
[1756642642539,331.32,203.07,203.04,7.23]
[1756642642738,120.82,203.06,202.93,7.23]
[1756642642935,120.82,203.06,202.95,7.23]
[1756642643132,120.82,203.06,202.97,7.23]
[1756642643432,120.82,203.06,202.99,7.23]
[1756642643635,120.82,203.05,203.01,7.23]
[1756642643840,331.32,203.07,203.03,7.23]
[1756642644040,331.32,203.07,203.04,11.86164419]
[1756642644041,120.8,203.06,203.04,11.86164419]
[1756642644339,120.8,203.06,203.05,4.63164419]
[1756642644935,120.8,203.06,203.05,4.62620951]
[1756642646341,120.8,203.06,203.04,7.23]
[1756642646541,331.32,203.07,203.04,7.23]
[1756642646841,120.8,203.06,203.04,7.23]
[1756642647437,120.8,203.06,202.92,7.23]
[1756642647641,120.8,203.06,202.94,7.23]
[1756642647942,120.8,203.06,202.96,7.23]
[1756642648241,120.8,203.06,202.98,7.23]
[1756642648543,120.8,203.06,203.0,7.23]
[1756642648736,120.8,203.06,203.01,11.85129304]
[1756642648943,120.8,203.06,203.02,4.62129304]
[1756642649142,120.8,203.06,203.03,4.62129304]
[1756642649343,120.8,203.06,203.01,7.23]
[1756642649642,120.8,203.06,203.02,4.61904043]
[1756642649842,120.8,203.06,203.03,4.61904043]
[1756642650043,120.8,203.06,203.01,7.23]
[1756642650343,120.8,203.06,203.02,4.61871207]
[1756642650544,120.8,203.06,202.97,7.23]
[1756642650745,120.8,203.06,202.98,4.61848665]
[1756642650940,120.8,203.06,202.99,4.61848665]
[1756642651140,120.8,203.06,203.0,4.61848665]
[1756642651441,120.78,203.05,203.01,11.84813099]
[1756642651743,120.78,203.05,203.02,4.61813099]
[1756642651941,120.78,203.05,203.01,7.23]
[1756642652142,120.78,203.05,203.02,4.61780739]
[1756642652343,120.78,203.05,203.01,7.23]
[1756642652645,120.78,203.05,203.02,4.61717344]
[1756642652839,120.78,203.05,203.01,7.23]
[1756642653040,120.78,203.05,203.02,4.61717311]
[1756642653344,120.78,203.05,202.9,7.23]
[1756642653539,120.78,203.05,202.92,7.23]
[1756642653845,120.78,203.05,202.94,7.23]
[1756642654144,120.78,203.05,202.96,7.23]
[1756642654342,120.78,203.05,202.97,4.61665803]
[1756642654542,120.78,203.05,202.98,11.84665803]
[1756642654842,120.78,203.05,202.99,4.61665803]
[1756642655046,120.78,203.05,203.0,11.84665803]
[1756642655241,120.78,203.05,203.01,4.61665803]
[1756642655441,120.78,203.05,203.02,4.61665803]
[1756642655638,120.78,203.05,203.0,7.23]
[1756642655844,120.78,203.05,202.88,4.12837702]
[1756642655845,120.78,203.05,203.01,4.61603501]
[1756642656045,120.78,203.05,202.97,7.23]
[1756642656345,120.78,203.05,202.98,4.61568879]
[1756642656646,120.78,203.05,202.99,4.61568879]
[1756642656841,120.78,203.05,203.0,4.61568879]
[1756642657040,120.78,203.05,203.01,4.61568879]
[1756642657238,120.78,203.05,202.97,7.23]
[1756642657439,120.78,203.05,202.98,4.61569047]
[1756642657646,120.78,203.05,202.99,4.61569047]
[1756642657848,120.78,203.05,203.0,4.61569047]
[1756642658047,120.78,203.05,203.01,4.61569047]
[1756642658245,120.78,203.05,202.97,7.23]
[1756642658444,120.78,203.05,202.98,4.61565017]
[1756642658742,331.32,203.07,202.99,4.61565017]
[1756642659046,120.78,203.06,203.0,11.93565017]
[1756642659247,120.78,203.06,203.02,7.32]
[1756642660148,120.78,203.06,203.03,4.61520289]
[1756642660352,120.78,203.06,202.91,7.32]
[1756642660549,120.78,203.06,202.93,7.32]
[1756642660850,120.78,203.06,202.95,7.32]
[1756642661050,120.78,203.06,202.97,7.32]
[1756642661240,120.78,203.06,202.99,7.32]
[1756642661552,120.78,203.06,203.0,4.61529868]
[1756642661749,331.32,203.07,203.01,11.93529868]
[1756642661949,120.78,203.05,203.02,4.61529868]
[1756642662150,120.78,203.05,203.03,4.61529868]
[1756642662449,120.78,203.05,203.01,7.32]
[1756642662749,120.78,203.05,203.02,4.61548483]
[1756642663045,120.76,203.04,203.03,4.61548483]
[1756642663246,331.32,203.07,203.03,4.61548483]
[1756642663448,120.76,203.06,203.04,4.61548483]
[1756642663643,120.76,203.06,203.05,4.61548483]
[1756642664044,120.76,203.06,203.05,11.93548483]
[1756642665455,5.49002996,203.23,203.05,11.93548483]
[1756642665654,331.1,203.2,203.06,4.61548483]
[1756642665853,331.1,203.2,203.05,7.32]
[1756642665854,59.99698455,203.19,203.07,4.61548483]
[1756642666055,59.99698455,203.19,203.08,4.61548483]
[1756642666353,59.99698455,203.19,203.09,4.61548483]
[1756642666554,59.99698455,203.19,203.1,4.61548483]
[1756642666754,59.99698455,203.19,203.11,4.61548483]
[1756642666954,59.99698455,203.19,203.07,7.32]
[1756642667232,59.99698455,203.19,203.08,4.61397879]
[1756642667374,59.99698455,203.19,203.09,4.61397879]
[1756642667554,59.99698455,203.19,202.97,4.12837702]
[1756642667555,59.99698455,203.19,203.1,4.61397879]
[1756642667758,59.99698455,203.19,202.96,7.32]
[1756642667956,59.99698455,203.19,202.98,7.32]
[1756642668260,59.99698455,203.19,203.0,7.32]
[1756642668648,59.99698455,203.19,203.01,4.61710741]
[1756642668946,59.99698455,203.19,203.02,11.93710741]
[1756642669147,59.99698455,203.19,203.03,4.61710741]
[1756642669352,59.99698455,203.19,203.04,4.61710741]
[1756642669556,59.99698455,203.19,203.05,4.61710741]
[1756642669756,59.99698455,203.19,203.02,7.32]
[1756642669757,65.48701451,203.19,203.06,4.61710741]
[1756642669952,65.48701451,203.19,203.02,7.32]
[1756642670255,65.48701451,203.19,203.03,4.60430567]
[1756642670455,65.48701451,203.19,203.04,4.60430567]
[1756642670656,65.48701451,203.19,203.05,4.60430567]
[1756642670954,65.48701451,203.19,203.06,4.60430567]
[1756642671154,65.48701451,203.19,203.07,4.60430567]
[1756642671353,5.49002996,203.18,203.02,7.32]
[1756642671553,5.49002996,203.18,203.03,4.60992346]
[1756642671754,5.49002996,203.18,203.04,4.60992346]
[1756642671945,5.49002996,203.18,203.05,4.60992346]
[1756642672149,5.49002996,203.18,203.06,4.60992346]
[1756642672347,5.49002996,203.17,203.07,4.60992346]
[1756642672546,5.49002996,203.17,203.08,4.60992346]
[1756642672754,5.49002996,203.17,203.02,7.32]
[1756642672954,5.49002996,203.17,203.03,4.61326095]
[1756642673152,5.49002996,203.17,203.04,4.61326095]
[1756642673354,5.49002996,203.17,203.05,4.61326095]
[1756642673553,5.49002996,203.17,203.06,4.61326095]
[1756642673750,5.49002996,203.16,203.07,4.61326095]
[1756642673953,121.52,203.15,203.08,4.61326095]
[1756642674154,121.52,203.15,203.02,7.32]
[1756642674356,127.01002996,203.15,203.03,4.61728382]
[1756642674553,127.01002996,203.15,203.04,4.61728382]
[1756642674753,127.01002996,203.15,203.05,4.61728382]
[1756642674954,127.01002996,203.15,203.06,4.61728382]
[1756642675259,127.01002996,203.15,203.07,4.61728382]
[1756642675462,127.01002996,203.15,203.08,4.61728382]
[1756642675759,127.01002996,203.15,203.02,7.32]
[1756642675959,127.01002996,203.15,203.03,4.61578441]
[1756642676164,127.01002996,203.15,203.04,11.93578441]
[1756642676354,127.01002996,203.15,203.05,4.61578441]
[1756642676556,127.01002996,203.15,203.06,4.61578441]
[1756642676856,127.01002996,203.15,203.07,4.61578441]
[1756642677159,127.01002996,203.15,203.08,4.61578441]
[1756642677359,127.01002996,203.15,203.04,7.32]
[1756642677554,127.01002996,203.15,203.05,4.61819188]
[1756642677751,127.01002996,203.15,203.06,4.61819188]
[1756642678059,127.01002996,203.15,203.07,4.61819188]
[1756642678259,127.01002996,203.15,203.04,7.32]
[1756642678260,5.49002996,203.14,203.08,4.61819188]
[1756642678456,5.49002996,203.14,203.09,4.61819188]
[1756642678662,5.49002996,203.14,203.01,7.32]
[1756642678663,5.49002996,203.12,203.01,7.32]
[1756642678862,5.49002996,203.12,203.02,4.61977095]
[1756642679057,5.49002996,203.12,203.03,4.61977095]
[1756642679264,5.49002996,203.12,203.04,4.61977113]
[1756642679462,5.49002996,203.12,203.05,4.61977113]
[1756642679663,5.49002996,203.12,203.06,4.61977113]
[1756642679863,5.49002996,203.12,203.01,7.32]
[1756642681469,5.49002996,203.11,203.01,7.32]
[1756642682465,336.55002996,203.12,203.01,7.32]
[1756642682664,121.32,203.11,203.01,7.32]
[1756642682861,121.34,203.1,203.01,7.32]
[1756642687065,5.49002996,203.11,203.01,7.32]
[1756642687366,121.24,203.1,203.01,7.32]
[1756642690268,5.49002996,203.11,203.01,7.32]
[1756642690564,121.16,203.1,203.01,7.32]
[1756642690771,5.49002996,203.11,203.01,7.32]
[1756642690972,121.16,203.1,203.01,7.32]
[1756642691863,331.06,203.12,203.01,7.32]
[1756642692069,121.14,203.13,203.02,4.11387624]
[1756642692272,121.14,203.13,203.03,7.41]
[1756642692971,121.14,203.13,203.05,7.41]
[1756642693170,121.14,203.13,203.07,7.41]
[1756642693371,121.14,203.13,203.09,7.41]
[1756642693673,121.14,203.13,203.1,12.08500588]
[1756642693867,121.14,203.13,203.11,4.67500588]
[1756642694068,121.14,203.13,203.12,4.67500588]
[1756642697571,127.13002996,203.13,202.98,7.41]
[1756642697874,5.49002996,203.11,202.99,4.66872116]
[1756642698070,5.49002996,203.11,203.0,4.66872116]
[1756642698371,5.49002996,203.11,203.01,4.66872116]
[1756642698673,5.49002996,203.11,202.98,7.41]
[1756642698674,5.49002996,203.11,203.02,4.66872116]
[1756642698874,5.49002996,203.11,203.03,4.66872116]
[1756642699175,5.49002996,203.11,202.98,7.41]
[1756642700374,5.49002996,203.1,202.98,7.41]
[1756642700874,5.49002996,203.11,202.98,7.41]
[1756642703573,5.49002996,203.1,202.98,7.41]
[1756642704277,5.49002996,203.09,202.98,7.41]
[1756642704479,5.49002996,203.08,202.98,7.41]
[1756642704781,121.0,203.07,202.98,7.41]
[1756642708680,120.98,203.06,202.98,7.41]
[1756642708979,5.49002996,203.1,202.98,7.41]
[1756642709179,120.98,203.09,202.98,7.41]
[1756642710781,126.47002996,203.09,202.98,7.41]
[1756642710978,5.49002996,203.08,202.98,7.41]
[1756642712881,5.49002996,203.11,202.98,7.41]
[1756642713071,120.98,203.1,202.99,4.53786272]
[1756642713274,120.98,203.1,203.01,7.41]
[1756642713473,120.98,203.1,203.03,7.41]
[1756642713678,120.98,203.1,203.04,4.53786272]
[1756642713983,5.49002996,203.11,203.05,11.94786272]
[1756642714279,121.02,203.1,203.06,11.94786272]
[1756642714483,121.02,203.1,203.07,4.53786272]
[1756642714683,121.02,203.09,203.08,4.53786272]
[1756642714884,121.02,203.09,203.08,11.94786272]
[1756642715384,121.02,203.09,203.08,4.53786272]
[1756642717579,331.04,203.12,203.08,4.53786272]
[1756642717780,120.96,203.11,203.09,4.53786272]
[1756642717980,120.96,203.11,203.1,4.53786272]
[1756642720885,120.96,203.11,203.1,4.70187325]
[1756642721085,120.96,203.11,203.03,7.83]
[1756642721287,120.96,203.11,203.04,4.70231248]
[1756642721588,120.96,203.11,203.05,4.70231248]
[1756642721788,120.96,203.11,203.06,4.70231248]
[1756642721789,126.45002996,203.11,203.06,4.70231248]
[1756642721990,5.49002996,203.1,202.99,7.83]
[1756642722188,5.49002996,203.1,203.0,4.5453307]
[1756642722489,5.49002996,203.1,203.01,4.5453307]
[1756642722786,5.49002996,203.1,203.02,4.5453307]
[1756642722985,5.49002996,203.1,203.03,4.5453307]
[1756642723185,5.49002996,203.1,203.04,4.5453307]
[1756642723385,5.49002996,203.1,203.05,4.5453307]
[1756642723686,5.49002996,203.1,203.06,4.5453307]
[1756642723888,5.49002996,203.1,202.99,7.83]
[1756642724085,5.49002996,203.1,203.0,4.5452033]
[1756642724386,5.49002996,203.1,203.01,4.5452033]